bitfinex/quotes_SOLUSD_20230104
["timestamp","ask_amount","ask_price","bid_price","bid_amount"]
[1672848209651,20.0,13.357,13.338,114.3411]
[1672848209978,56.2,13.356,13.338,114.3411]
[1672848210289,244.7,13.355,13.338,114.3411]
[1672848210483,224.7,13.353,13.338,114.3411]
[1672848210690,20.0,13.352,13.338,114.3411]
[1672848210900,224.7,13.351,13.338,114.3411]
[1672848211119,20.0,13.35,13.338,114.3411]
[1672848211864,76.22,13.352,13.338,114.3411]
[1672848212081,20.0,13.352,13.338,114.3411]
[1672848212307,20.0,13.353,13.338,114.3411]
[1672848213663,20.0,13.354,13.338,114.3411]
[1672848214800,20.0,13.355,13.338,114.3411]
[1672848215338,20.0,13.356,13.338,114.3411]
[1672848216185,20.0,13.357,13.338,114.3411]
[1672848216614,20.0,13.357,13.339,21.7811836]
[1672848216837,20.0,13.36,13.34,56.27]
[1672848217036,224.7,13.362,13.34,56.27]
[1672848217570,280.88,13.362,13.34,56.27]
[1672848218097,280.88,13.362,13.339,78.0511836]
[1672848218508,20.0,13.361,13.339,78.0511836]
[1672848218698,244.7,13.372,13.339,78.0511836]
[1672848218921,224.7,13.37,13.339,78.0511836]
[1672848219197,224.7,13.368,13.339,78.0511836]
[1672848219329,300.86,13.367,13.339,78.0511836]
[1672848219543,280.86,13.367,13.339,78.0511836]
[1672848219870,280.86,13.367,13.339,56.27]
[1672848219871,30.00273094,13.366,13.339,56.27]
[1672848220057,291.218,13.365,13.338,114.3411]
[1672848220272,30.348,13.364,13.338,114.3411]
[1672848220588,224.7,13.362,13.338,114.3411]
[1672848220793,76.18,13.361,13.338,114.3411]
[1672848221003,56.13,13.373,13.339,56.27]
[1672848221227,66.478,13.373,13.339,56.27]
[1672848221444,76.48073094,13.373,13.339,78.0511836]
[1672848221677,10.00273094,13.372,13.339,78.0511836]
[1672848221854,224.7,13.37,13.339,78.0511836]
[1672848222173,224.7,13.368,13.339,78.0511836]
[1672848222381,224.7,13.366,13.339,78.0511836]
[1672848222578,56.17,13.365,13.339,78.0511836]
[1672848222792,66.14273094,13.37,13.339,78.0511836]
[1672848223042,224.7,13.369,13.339,78.0511836]
[1672848223230,280.85,13.368,13.339,78.0511836]
[1672848223645,290.85273094,13.368,13.339,78.0511836]
[1672848223844,20.0,13.367,13.339,78.0511836]
[1672848224071,56.16,13.366,13.339,78.0511836]
[1672848224287,20.0,13.365,13.339,78.0511836]
[1672848224501,56.17,13.364,13.339,78.0511836]
[1672848224697,10.348,13.371,13.339,78.0511836]
[1672848224698,20.0,13.363,13.339,78.0511836]
[1672848224923,280.88,13.362,13.339,56.27]
[1672848225119,20.0,13.361,13.339,56.27]
[1672848225333,56.19,13.36,13.339,56.27]
[1672848225540,20.0,13.359,13.339,56.27]
[1672848225797,20.0,13.359,13.339,78.0511836]
[1672848226153,20.0,13.36,13.339,78.0511836]
[1672848226374,224.7,13.363,13.339,78.0511836]
[1672848226584,76.18,13.362,13.339,78.0511836]
[1672848226812,86.18273094,13.362,13.339,56.27]
[1672848227323,10.00273094,13.361,13.339,56.27]
[1672848227534,56.19,13.36,13.338,114.3411]
[1672848227734,76.19,13.36,13.338,114.3411]
[1672848227949,86.19273094,13.36,13.338,114.3411]
[1672848228156,310.89273094,13.36,13.338,114.3411]
[1672848228896,321.24073094,13.36,13.338,114.3411]
[1672848229736,10.348,13.359,13.338,114.3411]
[1672848229946,224.7,13.357,13.338,114.3411]
[1672848230174,224.7,13.355,13.338,114.3411]
[1672848230387,224.7,13.353,13.338,114.3411]
[1672848230592,224.7,13.351,13.338,114.3411]
[1672848230801,76.23,13.35,13.338,114.3411]
[1672848232372,20.0,13.35,13.338,114.3411]
[1672848232590,76.23,13.35,13.338,114.3411]
[1672848232794,20.0,13.35,13.338,114.3411]
[1672848233002,20.0,13.353,13.338,114.3411]
[1672848233204,20.0,13.355,13.339,21.7811836]
[1672848233413,76.13,13.373,13.339,56.28]
[1672848233626,10.348,13.372,13.339,56.28]
[1672848233846,76.14,13.371,13.339,56.28]
[1672848234058,235.048,13.37,13.339,56.28]
[1672848234280,224.7,13.368,13.339,56.28]
[1672848234459,224.7,13.366,13.339,78.0611836]
[1672848234670,280.87,13.365,13.341,38.72140066]
[1672848234885,280.87,13.365,13.342,61.49371491]
[1672848235099,290.87273094,13.365,13.342,56.26]
[1672848235511,56.17,13.365,13.342,56.26]
[1672848235724,280.86,13.366,13.342,56.26]
[1672848236459,56.16,13.366,13.342,38.72140066]
[1672848236671,56.15,13.369,13.343,56.26]
[1672848236887,20.0,13.368,13.343,56.26]
[1672848237225,315.60967895,13.384,13.343,56.26]
[1672848237226,10.00273094,13.365,13.343,56.26]
[1672848237433,56.17,13.364,13.343,56.26]
[1672848237623,20.0,13.363,13.343,56.26]
[1672848238046,10.00273094,13.362,13.343,56.26]
[1672848238257,20.0,13.361,13.343,38.72140066]
[1672848238690,30.00273094,13.361,13.343,38.72140066]
[1672848239018,30.00273094,13.361,13.342,38.72140066]
[1672848239210,30.00273094,13.361,13.343,56.26]
[1672848239959,30.00273094,13.361,13.342,38.72140066]
[1672848240273,30.00273094,13.361,13.343,56.26]
[1672848241308,30.00273094,13.361,13.343,94.98140066]
[1672848241525,30.00273094,13.361,13.343,38.72140066]
[1672848241832,30.00273094,13.361,13.339,56.28]
[1672848242046,66.89887844,13.36,13.34,38.72140066]
[1672848242364,20.0,13.359,13.343,38.72140066]
[1672848243724,20.0,13.359,13.341,94.99140066]
[1672848243928,30.70887844,13.359,13.341,38.72140066]
[1672848244266,30.70887844,13.359,13.34,38.72140066]
[1672848244480,30.70887844,13.359,13.341,38.72140066]
[1672848244991,20.0,13.359,13.341,38.72140066]
[1672848245196,20.0,13.364,13.342,78.0411836]
[1672848245406,280.87,13.363,13.342,56.26]
[1672848245631,280.87,13.363,13.339,21.7811836]
[1672848245632,20.0,13.362,13.339,21.7811836]
[1672848246056,56.18,13.361,13.34,56.27]
[1672848246245,20.0,13.36,13.34,56.27]
[1672848246455,20.0,13.36,13.341,21.7811836]
[1672848247191,20.0,13.36,13.339,56.28]
[1672848247400,280.89,13.359,13.338,114.3411]
[1672848247611,20.0,13.358,13.338,114.3411]
[1672848248567,56.2,13.357,13.338,136.1222836]
[1672848248782,76.2,13.358,13.338,136.1222836]
[1672848249091,76.2,13.358,13.338,114.3411]
[1672848249847,20.0,13.358,13.339,21.7811836]
[1672848250060,20.0,13.358,13.339,78.0611836]
[1672848250476,20.0,13.358,13.339,56.28]
[1672848250680,20.0,13.358,13.339,21.7811836]
[1672848251210,20.0,13.358,13.34,56.27]
[1672848251737,224.7,13.364,13.341,21.7811836]
[1672848251952,224.7,13.362,13.341,21.7811836]
[1672848252161,20.0,13.361,13.341,21.7811836]
[1672848252366,76.18,13.361,13.341,21.7811836]
[1672848252579,20.0,13.361,13.342,56.26]
[1672848252776,20.0,13.364,13.342,56.26]
[1672848252989,20.0,13.364,13.343,21.7811836]
[1672848253213,20.0,13.364,13.344,56.25]
[1672848253424,20.0,13.364,13.343,21.7811836]
[1672848253641,31.39032972,13.364,13.344,56.25]
[1672848253952,312.26032972,13.364,13.344,56.25]
[1672848254165,312.26032972,13.364,13.341,56.27]
[1672848254369,256.09032972,13.364,13.341,56.27]
[1672848254566,224.7,13.362,13.339,56.28]
[1672848254778,20.0,13.361,13.339,56.28]
[1672848254988,31.39032972,13.361,13.34,21.7811836]
[1672848255217,11.39032972,13.36,13.341,56.27]
[1672848255408,20.0,13.359,13.341,56.27]
[1672848255935,11.39032972,13.358,13.341,56.27]
[1672848256145,20.0,13.357,13.339,56.28]
[1672848256567,20.0,13.357,13.341,21.7811836]
[1672848256995,31.39032972,13.363,13.339,56.28]
[1672848257310,11.39032972,13.357,13.339,56.28]
[1672848257527,20.0,13.356,13.339,56.28]
[1672848258462,11.39032972,13.36,13.339,56.28]
[1672848258669,20.0,13.359,13.339,56.28]
[1672848258890,20.0,13.359,13.34,21.7811836]
[1672848259098,20.0,13.359,13.341,56.27]
[1672848260035,20.0,13.359,13.341,78.0511836]
[1672848260558,20.0,13.363,13.341,78.0511836]
[1672848260772,20.0,13.363,13.341,56.27]
[1672848260994,11.39032972,13.36,13.338,114.3411]
[1672848261212,300.89,13.359,13.338,114.3411]
[1672848261633,11.39032972,13.358,13.338,114.3411]
[1672848261836,300.9,13.357,13.338,114.3411]
[1672848262372,11.39032972,13.356,13.338,114.3411]
[1672848262569,224.7,13.354,13.338,114.3411]
[1672848262781,76.21,13.355,13.338,114.3411]
[1672848262782,224.7,13.352,13.338,114.3411]
[1672848263003,20.0,13.351,13.338,114.3411]
[1672848263309,31.39032972,13.351,13.338,114.3411]
[1672848263529,236.09032972,13.35,13.338,114.3411]
[1672848263731,20.0,13.349,13.338,114.3411]
[1672848263943,31.39032972,13.349,13.338,114.3411]
[1672848264147,11.39032972,13.348,13.338,114.3411]
[1672848264362,20.0,13.347,13.338,114.3411]
[1672848265081,20.0,13.347,13.324,56.34]
[1672848265293,11.39032972,13.347,13.325,136.3446]
[1672848265517,20.0,13.346,13.326,56.33]
[1672848265733,20.0,13.346,13.327,20.0]
[1672848266982,20.0,13.346,13.328,56.32]
[1672848267936,31.40823594,13.346,13.327,20.0]
[1672848268130,31.40823594,13.346,13.328,56.32]
[1672848269815,31.40823594,13.346,13.327,20.0]
[1672848270145,31.40823594,13.346,13.326,56.33]
[1672848270146,224.7,13.344,13.326,56.33]
[1672848270352,224.7,13.344,13.325,116.3446]
[1672848270353,300.96,13.343,13.325,116.3446]
[1672848270552,20.0,13.342,13.325,116.3446]
[1672848270761,280.97,13.341,13.325,116.3446]
[1672848270982,20.0,13.34,13.325,116.3446]
[1672848271392,31.40823594,13.34,13.325,116.3446]
[1672848271724,11.40823594,13.339,13.325,116.3446]
[1672848271934,20.0,13.338,13.325,116.3446]
[1672848272344,11.40823594,13.337,13.325,116.3446]
[1672848272668,20.0,13.336,13.325,116.3446]
[1672848273199,224.7,13.352,13.325,116.3446]
[1672848273516,224.7,13.35,13.325,116.3446]
[1672848273702,224.7,13.348,13.325,116.3446]
[1672848273912,224.7,13.346,13.325,116.3446]
[1672848274123,224.7,13.344,13.325,116.3446]
[1672848274458,20.0,13.343,13.325,116.3446]
[1672848274650,11.90427315,13.349,13.326,76.33]
[1672848274651,224.7,13.349,13.326,76.33]
[1672848275076,224.7,13.356,13.326,148.35392749]
[1672848275388,224.7,13.354,13.326,98.1111836]
[1672848275602,224.7,13.352,13.326,98.1111836]
[1672848276769,280.92,13.351,13.326,98.1111836]
[1672848276962,224.7,13.351,13.326,98.1111836]
[1672848277186,20.0,13.35,13.326,98.1111836]
[1672848277436,20.0,13.35,13.326,76.33]
[1672848279197,31.91248029,13.35,13.326,76.33]
[1672848279937,10.39384,13.353,13.327,21.7811836]
[1672848280141,56.2,13.357,13.327,21.7811836]
[1672848280142,20.0,13.352,13.328,56.32]
[1672848280345,20.0,13.356,13.328,56.32]
[1672848280684,20.0,13.356,13.329,21.7811836]
[1672848280880,20.0,13.356,13.33,56.31]
[1672848281093,20.0,13.356,13.332,38.72140066]
[1672848281300,20.0,13.357,13.333,191.4052]
[1672848281519,20.0,13.357,13.333,213.1863836]
[1672848281723,224.7,13.371,13.334,21.7811836]
[1672848281928,224.7,13.369,13.335,56.29]
[1672848282155,56.15,13.368,13.336,20.0]
[1672848282354,56.15,13.368,13.337,56.28]
[1672848282567,280.85,13.368,13.337,78.0611836]
[1672848282778,399.9269,13.368,13.337,78.0611836]
[1672848282986,399.9269,13.368,13.338,21.7811836]
[1672848283195,399.9269,13.368,13.339,56.28]
[1672848283399,20.0,13.367,13.339,56.28]
[1672848283613,280.86,13.366,13.34,21.7811836]
[1672848283840,280.86,13.366,13.341,56.27]
[1672848284053,20.0,13.365,13.341,175.3073]
[1672848284263,280.87,13.364,13.342,21.7811836]
[1672848284474,280.87,13.364,13.341,119.0373]
[1672848284790,224.7,13.362,13.341,119.0373]
[1672848284992,224.7,13.36,13.329,56.32]
[1672848285192,224.7,13.358,13.33,119.0373]
[1672848285414,300.9,13.357,13.331,56.31]
[1672848285608,20.0,13.356,13.331,56.31]
[1672848285826,280.91,13.355,13.331,56.31]
[1672848286052,292.82248029,13.355,13.33,119.0373]
[1672848286263,20.0,13.354,13.33,119.0373]
[1672848286476,56.22,13.353,13.33,119.0373]
[1672848286658,20.0,13.352,13.331,78.0911836]
[1672848287078,20.0,13.357,13.332,21.7811836]
[1672848287286,56.2,13.356,13.332,21.7811836]
[1672848287606,20.0,13.355,13.332,21.7811836]
[1672848287833,56.21,13.354,13.332,21.7811836]
[1672848288029,20.0,13.353,13.332,21.7811836]
[1672848288237,20.0,13.353,13.333,56.3]
[1672848288456,20.0,13.353,13.332,21.7811836]
[1672848288780,11.91248029,13.353,13.334,21.7811836]
[1672848289083,11.91248029,13.353,13.331,56.31]
[1672848289084,20.0,13.352,13.331,56.31]
[1672848289503,31.91248029,13.352,13.331,56.31]
[1672848291695,31.91248029,13.352,13.33,119.0373]
[1672848291904,31.91248029,13.352,13.331,56.31]
[1672848293072,20.0,13.352,13.331,78.0911836]
[1672848293255,56.2,13.358,13.331,78.0911836]
[1672848293256,20.0,13.357,13.331,78.0911836]
[1672848293466,56.2,13.356,13.331,78.0911836]
[1672848293671,20.0,13.355,13.331,78.0911836]
[1672848294215,20.0,13.357,13.331,302.7911836]
[1672848294424,56.2,13.356,13.331,302.7911836]
[1672848294624,20.0,13.355,13.331,302.7911836]
[1672848295043,20.0,13.358,13.332,322.02140066]
[1672848295254,56.2,13.357,13.333,56.3]
[1672848295568,56.19,13.359,13.334,20.0]
[1672848295781,56.19,13.359,13.335,56.29]
[1672848295983,56.19,13.359,13.336,20.0]
[1672848296189,56.19,13.359,13.337,110.939]
[1672848296418,56.19,13.359,13.337,189.0001836]
[1672848296949,56.19,13.359,13.338,21.7811836]
[1672848298104,20.0,13.358,13.338,21.7811836]
[1672848298513,76.19,13.359,13.338,21.7811836]
[1672848300626,300.89,13.359,13.338,21.7811836]
[1672848302201,300.89,13.359,13.337,110.939]
[1672848306910,11.91248029,13.358,13.337,110.939]
[1672848307124,300.9,13.357,13.337,110.939]
[1672848308097,11.91248029,13.356,13.337,110.939]
[1672848308296,66.58104,13.355,13.337,110.939]
[1672848308618,20.0,13.354,13.337,132.7201836]
[1672848309016,20.0,13.354,13.337,110.939]
[1672848309245,56.22,13.353,13.337,110.939]
[1672848309438,20.0,13.352,13.338,21.7811836]
[1672848310179,20.0,13.353,13.337,110.939]
[1672848310390,68.13248029,13.352,13.337,110.939]
[1672848310600,20.0,13.351,13.337,110.939]
[1672848311221,56.23,13.35,13.337,110.939]
[1672848311439,20.0,13.349,13.337,110.939]
[1672848311650,56.24,13.348,13.337,110.939]
[1672848311879,20.0,13.347,13.337,110.939]
[1672848313231,31.91248029,13.347,13.337,110.939]
[1672848315649,20.0,13.347,13.337,110.939]
[1672848315856,224.7,13.353,13.337,110.939]
[1672848316070,267.03746784,13.376,13.337,110.939]
[1672848316071,224.7,13.351,13.337,110.939]
[1672848316387,76.23,13.35,13.337,110.939]
[1672848317125,11.91248029,13.349,13.337,110.939]
[1672848317325,56.24,13.348,13.337,110.939]
[1672848317536,20.0,13.347,13.337,110.939]
[1672848318277,11.91248029,13.351,13.337,110.939]
[1672848318503,76.23,13.35,13.337,110.939]
[1672848318812,300.93,13.35,13.337,110.939]
[1672848319337,11.91248029,13.349,13.337,110.939]
[1672848319544,76.24,13.348,13.337,110.939]
[1672848320077,11.91248029,13.347,13.337,110.939]
[1672848320285,20.0,13.346,13.337,110.939]
[1672848320912,20.0,13.347,13.337,110.939]
[1672848321226,224.7,13.354,13.337,110.939]
[1672848321433,11.91248029,13.346,13.337,110.939]
[1672848321632,20.0,13.345,13.337,110.939]
[1672848323434,20.0,13.357,13.338,21.7811836]
[1672848323632,56.2,13.356,13.338,21.7811836]
[1672848323961,20.0,13.355,13.338,21.7811836]
[1672848324605,20.0,13.356,13.338,21.7811836]
[1672848324808,20.0,13.357,13.339,56.27]
[1672848325026,20.0,13.358,13.339,56.27]
[1672848325222,20.0,13.358,13.34,21.7811836]
[1672848325649,20.0,13.36,13.34,21.7811836]
[1672848325859,56.18,13.361,13.34,21.7811836]
[1672848326073,56.18,13.361,13.341,56.27]
[1672848326487,224.7,13.374,13.342,21.7811836]
[1672848326707,11.91248029,13.367,13.338,56.28]
[1672848326926,224.7,13.365,13.338,56.28]
[1672848327118,224.7,13.363,13.34,21.7811836]
[1672848327334,66.54104,13.364,13.34,21.7811836]
[1672848327335,224.7,13.361,13.34,21.7811836]
[1672848327658,300.89,13.36,13.34,21.7811836]
[1672848327866,312.80248029,13.36,13.338,56.28]
[1672848328071,312.80248029,13.36,13.339,21.7811836]
[1672848328283,11.91248029,13.359,13.339,21.7811836]
[1672848328599,20.0,13.358,13.338,56.28]
[1672848329005,31.91248029,13.358,13.338,56.28]
[1672848329435,31.91248029,13.358,13.339,21.7811836]
[1672848329647,20.0,13.358,13.34,56.27]
[1672848329859,20.0,13.36,13.34,56.27]
[1672848330056,20.0,13.36,13.341,21.7811836]
[1672848333642,20.0,13.361,13.342,56.26]
[1672848333958,76.17,13.365,13.343,21.7811836]
[1672848334173,76.17,13.365,13.344,56.25]
[1672848334378,76.17,13.365,13.345,118.0267]
[1672848334576,76.17,13.365,13.345,139.8078836]
[1672848334787,76.17,13.365,13.346,21.7811836]
[1672848335006,300.87,13.365,13.346,21.7811836]
[1672848335842,300.87,13.365,13.345,118.0267]
[1672848336264,300.87,13.365,13.345,139.8078836]
[1672848337935,11.91248029,13.364,13.345,139.8078836]
[1672848338155,300.87,13.363,13.345,139.8078836]
[1672848338371,300.87,13.363,13.345,118.0267]
[1672848338906,300.87,13.363,13.346,21.7811836]
[1672848339639,300.87,13.363,13.345,118.0267]
[1672848339831,300.87,13.363,13.336,56.29]
[1672848339832,22.27440686,13.362,13.336,56.29]
[1672848340044,224.7,13.36,13.336,114.0355]
[1672848340370,224.7,13.358,13.336,114.0355]
[1672848340567,300.9,13.357,13.336,114.0355]
[1672848340777,312.80336686,13.357,13.336,114.0355]
[1672848340987,11.90336686,13.356,13.336,135.8166836]
[1672848341199,280.91,13.355,13.336,135.8166836]
[1672848341415,20.0,13.354,13.336,135.8166836]
[1672848341626,280.92,13.353,13.336,135.8166836]
[1672848341853,20.0,13.352,13.336,114.0355]
[1672848342042,31.90336686,13.352,13.336,114.0355]
[1672848342677,11.90336686,13.351,13.336,114.0355]
[1672848342883,20.0,13.35,13.336,114.0355]
[1672848345430,11.90336686,13.349,13.336,114.0355]
[1672848345626,20.0,13.348,13.336,114.0355]
[1672848345947,31.90336686,13.348,13.336,114.0355]
[1672848347523,31.90336686,13.348,13.336,113.91682115]
[1672848348683,20.0,13.348,13.336,113.91682115]
[1672848348874,20.0,13.354,13.336,113.91682115]
[1672848349079,11.90336686,13.351,13.336,113.91682115]
[1672848349290,20.0,13.35,13.336,113.91682115]
[1672848349717,31.90336686,13.35,13.336,113.91682115]
[1672848353616,20.0,13.35,13.336,113.91682115]
[1672848353820,31.90336686,13.35,13.336,113.91682115]
[1672848354354,20.0,13.35,13.336,113.91682115]
[1672848354571,20.0,13.353,13.336,113.91682115]
[1672848354884,20.0,13.353,13.336,135.69800475]
[1672848355080,20.0,13.355,13.336,135.69800475]
[1672848355935,20.0,13.356,13.336,135.69800475]
[1672848356752,280.91,13.355,13.336,113.91682115]
[1672848356970,224.7,13.355,13.337,21.7811836]
[1672848357179,20.0,13.354,13.337,21.7811836]
[1672848357388,20.0,13.354,13.336,113.91682115]
[1672848357610,224.7,13.352,13.336,113.91682115]
[1672848357810,78.49440686,13.353,13.336,113.91682115]
[1672848357811,224.7,13.35,13.336,113.91682115]
[1672848358031,30.37104,13.349,13.336,113.91682115]
[1672848358228,10.37104,13.348,13.336,113.91682115]
[1672848358439,22.27440686,13.348,13.336,113.91682115]
[1672848358763,31.90336686,13.347,13.336,113.91682115]
[1672848358973,224.7,13.346,13.336,113.91682115]
[1672848359192,20.0,13.345,13.336,113.91682115]
[1672848360654,20.0,13.346,13.336,113.91682115]
[1672848364331,20.0,13.346,13.337,21.7811836]
[1672848364530,20.0,13.346,13.337,78.0611836]
[1672848364743,20.0,13.356,13.337,78.0611836]
[1672848364950,20.0,13.356,13.338,21.7811836]
[1672848366439,331.17013785,13.372,13.339,56.27]
[1672848366440,300.87,13.363,13.339,56.27]
[1672848366668,31.90336686,13.362,13.339,103.4629098]
[1672848366959,20.0,13.362,13.34,21.7811836]
[1672848367178,56.18,13.361,13.341,56.27]
[1672848367387,56.18,13.362,13.341,56.27]
[1672848367586,56.18,13.362,13.342,21.7811836]
[1672848367915,224.7,13.364,13.342,21.7811836]
[1672848368104,280.87,13.363,13.343,116.8962]
[1672848368543,20.0,13.362,13.344,21.7811836]
[1672848369383,20.0,13.362,13.343,116.8962]
[1672848369799,292.78336686,13.361,13.343,116.8962]
[1672848370002,20.0,13.36,13.343,116.8962]
[1672848371596,20.0,13.36,13.343,21.7811836]
[1672848372943,11.90336686,13.359,13.343,21.7811836]
[1672848373162,20.0,13.358,13.336,56.29]
[1672848373377,280.9,13.357,13.336,56.29]
[1672848373581,30.37104,13.356,13.334,56.3]
[1672848373804,224.7,13.354,13.33,56.31]
[1672848373994,20.0,13.353,13.33,56.31]
[1672848374205,20.0,13.353,13.329,56.32]
[1672848374414,11.90336686,13.352,13.329,56.32]
[1672848374621,20.0,13.351,13.329,56.32]
[1672848375043,11.90336686,13.35,13.329,56.32]
[1672848375254,20.0,13.349,13.329,56.32]
[1672848376411,20.0,13.349,13.329,92.55781539]
[1672848376826,11.90336686,13.348,13.329,92.55781539]
[1672848377061,20.0,13.347,13.329,56.32]
[1672848377799,20.0,13.347,13.329,78.1011836]
[1672848378199,20.0,13.347,13.329,56.32]
[1672848378408,20.0,13.347,13.329,78.1011836]
[1672848378631,20.0,13.347,13.329,56.32]
[1672848378943,20.0,13.347,13.329,53.69035967]
[1672848380000,20.0,13.347,13.329,75.47154327]
[1672848380197,20.0,13.351,13.333,38.72140066]
[1672848380414,20.0,13.351,13.334,56.3]
[1672848380611,20.0,13.351,13.334,78.0811836]
[1672848380823,20.0,13.351,13.335,21.7811836]
[1672848381262,20.0,13.351,13.33,50.29183132]
[1672848381452,11.90336686,13.35,13.334,21.7811836]
[1672848381665,20.0,13.349,13.334,21.7811836]
[1672848381881,20.0,13.349,13.331,56.31]
[1672848382103,20.0,13.349,13.331,21.7811836]
[1672848382413,31.90336686,13.349,13.332,56.3]
[1672848382816,31.90336686,13.349,13.333,21.7811836]
[1672848383027,31.90336686,13.349,13.334,56.3]
[1672848383267,31.90336686,13.349,13.333,21.7811836]
[1672848383454,31.90336686,13.349,13.33,56.31]
[1672848383455,31.90336686,13.349,13.334,21.7811836]
[1672848384724,20.0,13.349,13.33,56.31]
[1672848385047,20.0,13.351,13.331,21.7811836]
[1672848385358,20.0,13.351,13.332,56.3]
[1672848385673,20.0,13.351,13.333,21.7811836]
[1672848386709,31.90336686,13.351,13.333,21.7811836]
[1672848386920,31.90336686,13.351,13.33,56.31]
[1672848387141,31.90336686,13.351,13.331,21.7811836]
[1672848387449,20.0,13.351,13.331,21.7811836]
[1672848388833,20.0,13.351,13.332,72.189]
[1672848389255,11.90336686,13.35,13.333,21.7811836]
[1672848389572,20.0,13.349,13.333,21.7811836]
[1672848390737,20.0,13.351,13.333,21.7811836]
[1672848390943,30.37104,13.351,13.333,21.7811836]
[1672848392413,224.7,13.349,13.333,21.7811836]
[1672848392627,20.0,13.348,13.333,21.7811836]
[1672848392833,20.0,13.348,13.332,72.189]
[1672848393046,22.27440686,13.347,13.332,72.189]
[1672848393245,30.37104,13.346,13.332,72.189]
[1672848393978,246.97440686,13.345,13.333,566.22457994]
[1672848394188,224.7,13.343,13.325,250.32837994]
[1672848394392,86.62104,13.344,13.32,38.72140066]
[1672848394393,224.7,13.341,13.32,38.72140066]
[1672848394621,224.7,13.341,13.321,21.7811836]
[1672848394622,224.7,13.339,13.321,21.7811836]
[1672848394941,20.0,13.338,13.321,21.7811836]
[1672848395144,20.0,13.338,13.322,48.5152]
[1672848395674,20.0,13.338,13.323,21.7811836]
[1672848395883,20.0,13.338,13.322,48.5152]
[1672848395884,20.0,13.339,13.322,48.5152]
[1672848396199,20.0,13.34,13.322,48.5152]
[1672848397237,224.7,13.339,13.322,70.2963836]
[1672848397448,20.0,13.338,13.322,70.2963836]
[1672848399025,20.0,13.338,13.323,117.1265]
[1672848399446,20.0,13.338,13.323,138.9076836]
[1672848401019,20.0,13.338,13.323,137.9076836]
[1672848401568,20.0,13.342,13.323,137.9076836]
[1672848401877,86.63104,13.342,13.324,21.7811836]
[1672848403226,311.33104,13.342,13.324,21.7811836]
[1672848403447,86.63104,13.342,13.324,21.7811836]
[1672848404945,311.33104,13.342,13.324,21.7811836]
[1672848405142,311.33104,13.342,13.325,23.5078]
[1672848405351,21.61149455,13.341,13.325,23.5078]
[1672848405556,224.7,13.339,13.325,23.5078]
[1672848405772,311.35104,13.338,13.325,23.5078]
[1672848406092,30.37104,13.337,13.314,56.38]
[1672848406307,291.36104,13.336,13.315,156.5255]
[1672848406492,20.0,13.335,13.317,21.7811836]
[1672848406707,56.3,13.334,13.317,21.7811836]
[1672848406920,20.0,13.333,13.317,21.7811836]
[1672848407652,20.0,13.334,13.317,21.7811836]
[1672848408389,56.3,13.333,13.317,21.7811836]
[1672848408708,20.0,13.332,13.317,21.7811836]